fUST/lending_fUST_20260225
["ID","MTS","AMOUNT","RATE_DAILY","PERIOD"]
[406590387,1771959038196,-1060.82925923,0.00024953,2]
[406590388,1771959038207,-1805.32097109,0.00024953,2]
[406590389,1771959038220,-58402.27885067,0.0003643,2]
[406590727,1771959046196,-486.07734353,0.00024953,2]
[406590739,1771959956136,-713.42177916,0.00024039,2]
[406590740,1771960035092,-473.67327033,0.0002416,2]
[406590741,1771960051085,-1047.11931518,0.0002416,2]
[406590742,1771960052081,-3479.20741449,0.0002416,2]
[406590743,1771960052101,-150.0,0.00024161,2]
[406590744,1771960052122,-807.0,0.00024404,2]
[406590745,1771960052144,-287.32,0.000249,2]
[406590746,1771960052164,-177.0,0.00026161,2]
[406590747,1771960052185,-150.0,0.00028,5]
[406590748,1771960052206,-204.0,0.00028161,2]
[406590749,1771960052226,-238.0,0.00028543,2]
[406590750,1771960052245,-300.0,0.00028545,2]
[406590751,1771960052263,-250.0,0.00028548,5]
[406590752,1771960052282,-350.0,0.00029096,5]
[406590753,1771960052302,-450.0,0.00029644,5]
[406590754,1771960052322,-1878.58,0.0003,30]
[406590755,1771960052343,-231.0,0.00030161,2]
[406590756,1771960052362,-550.0,0.00030192,5]
[406590757,1771960052381,-650.0,0.0003074,5]
[406590758,1771960052400,-190.0,0.00030795,42]
[406590759,1771960052420,-750.0,0.00031288,5]
[406590760,1771960052441,-850.0,0.00031836,5]
[406590761,1771960052460,-258.0,0.00032161,2]
[406590762,1771960052483,-950.0,0.00032384,5]
[406590763,1771960052501,-1050.0,0.00032932,5]
[406590764,1771960052522,-400.0,0.00033479,5]
[406590765,1771960052548,-500.0,0.00033699,7]
[406590766,1771960052569,-500.0,0.00033699,7]
[406590767,1771960052590,-500.0,0.00033699,7]
[406590768,1771960052613,-597.75924198,0.00033699,7]
[406590769,1771960052633,-12004.0,0.000337,2]
[406590770,1771960052652,-461.489827,0.00034047,2]
[406590771,1771960052676,-285.0,0.00034161,120]
[406590772,1771960052697,-169.338,0.00034386,38]
[406590773,1771960052716,-461.489827,0.00035481,2]
[406590774,1771960052737,-160.0,0.00035726,81]
[406590775,1771960052757,-312.0,0.00036161,120]
[406590776,1771960052777,-342.36553434,0.00036419,120]
[406590777,1771960052802,-3612.43,0.0003642,3]
[406590778,1771960052823,-1806.22,0.0003642,3]
[406590779,1771960052845,-903.11,0.0003642,3]
[406590780,1771960052865,-451.55,0.0003642,3]
[406590781,1771960052890,-225.78,0.0003642,3]
[406590782,1771960052910,-677.34,0.0003642,3]
[406590783,1771960052931,-1376.15,0.0003642,10]
[406590784,1771960052950,-1967.18094738,0.0003642,3]
[406590785,1771960052971,-309789.7981,0.0003643,2]
[406590786,1771960052991,-255.6,0.00036498,2]
[406590787,1771960053012,-511.5765,0.00036499,2]
[406590788,1771960053034,-511.5765,0.00036499,3]
[406590789,1771960053054,-511.5765,0.00036499,5]
[406590790,1771960053074,-744.3517164,0.00036499,3]
[406590791,1771960053095,-6965.09,0.000365,2]
[406590792,1771960053114,-461.489827,0.00036914,2]
[406590793,1771960053231,-282.0,0.00037087,2]
[406590794,1771960053267,-352.0,0.00037461,2]
[406590795,1771960053289,-7224.86,0.0003779,3]
[406590796,1771960053312,-3612.44,0.0003779,3]
[406590797,1771960053335,-1806.22,0.0003779,3]
[406590798,1771960053357,-903.1,0.0003779,3]
[406590799,1771960053381,-451.56,0.0003779,3]
[406590800,1771960053403,-339.0,0.00038161,120]
[406590801,1771960053424,-655.72698246,0.00038224,3]
[406590802,1771960053445,-117814.0155,0.00038234,2]
[406590803,1771960053466,-150.37,0.000383,7]
[406590804,1771960053486,-461.489827,0.00038347,2]
[406590805,1771960053507,-461.489827,0.0003978,2]
[406590806,1771960053528,-366.0,0.00040161,120]
[406590807,1771960053553,-327.86349123,0.00041085,3]
[406590808,1771960053577,-4976.19,0.00041095,120]
[406590809,1771960053597,-412.871,0.00041099,2]
[406590810,1771960053619,-461.489827,0.00041214,2]
[406590811,1771960053645,-205.8258716,0.0004127,2]
[406590812,1771960053665,-894.67,0.000413,14]
[406590813,1771960053686,-1202.03,0.000413,30]
[406590814,1771960053705,-1923.2658,0.00041515,2]
[406590815,1771960053726,-206.4354,0.0004196,2]
[406590816,1771960053746,-424.98,0.00042,30]
[406590817,1771960053766,-450.52,0.00042,14]
[406590818,1771960053786,-412.871,0.00042127,2]
[406590819,1771960053812,-393.0,0.00042161,120]
[406590820,1771960053833,-1644.08,0.00042408,120]
[406590821,1771960053854,-1923.2658,0.00042552,2]
[406590822,1771960053874,-1726.29,0.00042908,120]
[406590823,1771960053895,-206.4354,0.00043009,2]
[406590824,1771960053915,-727.0,0.00043249,2]
[406590825,1771960053935,-1812.6,0.00043408,120]
[406590826,1771960053957,-1923.2658,0.0004359,2]
[406590827,1771960053976,-1903.23,0.00043908,120]
[406590828,1771960053996,-206.4354,0.00044058,2]
[406590829,1771960054017,-420.0,0.0004416,120]
[406590830,1771960054037,-1998.4,0.00044408,120]
[406590831,1771960054058,-151.0,0.000445,12]
[406590832,1771960054078,-259.98334428,0.0004471,2]
[406590833,1771960054100,-2098.32,0.00044908,120]
[406590834,1771960054121,-445.00543365,0.00045054,30]
[406590835,1771960054141,-286.0,0.00045284,60]
[406590836,1771960054162,-713.5,0.00045284,60]
[406590837,1771960054183,-504.93420902,0.00045404,30]
[406590838,1771960054208,-640.96804592,0.00045404,30]
[406590839,1771960054227,-2203.23,0.00045408,120]
[406590840,1771960054247,-2313.39,0.00045908,120]
[406590841,1771960054266,-327.1970983,0.00045923,2]
[406590842,1771960054287,-467.9700197,0.00045923,2]
[406590843,1771960054307,-447.0,0.00046161,120]
[406590844,1771960054327,-727.0,0.00046249,2]
[406590845,1771960054347,-2429.06,0.00046408,120]
[406590846,1771960054366,-2550.52,0.00046908,120]
[406590847,1771960054387,-169.19870026,0.00046997,2]
[406590848,1771960054408,-676.79480104,0.00046997,2]
[406590849,1771960054428,-1521.26551403,0.00046997,2]
[406590850,1771960054448,-523.42876521,0.00046997,2]
[406590851,1771960054467,-941.22960559,0.00046997,2]
[406590852,1771960054488,-151.0,0.00047,25]
[406590853,1771960054507,-2678.04,0.00047408,120]
[406590854,1771960054530,-327.86349123,0.00047898,4]
[406590855,1771960054551,-2811.95,0.00047908,120]
[406590856,1771960054575,-2952.54,0.00048408,120]
[406590857,1771960054597,-151.0,0.00048408,120]
[406590858,1771960054617,-151.0,0.00048408,120]
[406590859,1771960054639,-151.0,0.00048408,120]
[406590860,1771960054659,-196.673624,0.00048408,120]
[406590861,1771960054678,-196.673624,0.00048408,120]
[406590862,1771960054697,-196.673624,0.00048408,120]
[406590863,1771960054717,-196.673624,0.00048408,120]
[406590864,1771960054737,-151.471067,0.00048408,120]
[406590865,1771960054757,-6965.09,0.000485,2]
[406590866,1771960054776,-151.0,0.000485,120]
[406590867,1771960054796,-151.99231,0.000485,120]
[406590868,1771960054817,-151.99231,0.000485,120]
[406590869,1771960054836,-151.99231,0.000485,120]
[406590870,1771960054856,-151.0,0.000485,30]
[406590871,1771960054875,-3100.17,0.00048908,120]
[406590872,1771960054896,-934.59140941,0.00049046,30]
[406590873,1771960054915,-727.0,0.00049249,2]
[406590874,1771960054935,-3255.18,0.00049408,120]
[406590875,1771960054956,-151.0,0.000495,21]
[406590876,1771960054976,-3417.94,0.00049908,120]
[406590877,1771960054997,-402.0,0.000503,31]
[406590878,1771960055017,-200.0,0.000503,60]
[406590879,1771960055041,-1225.45381488,0.00050347,30]
[406590880,1771960055062,-1131.2171071,0.00050375,2]
[406590881,1771960055082,-429.742488,0.00050375,2]
[406590882,1771960055102,-402.0,0.0005038,31]
[406590883,1771960055133,-1202.03,0.000504,30]
[406590884,1771960055153,-424.98,0.000504,30]
[406590885,1771960055174,-450.52,0.000504,14]
[406590886,1771960055195,-3588.84,0.00050408,120]
[406590887,1771960055215,-300.0,0.000506,60]
[406590888,1771960055236,-894.67,0.000506,14]
[406590889,1771960055256,-402.0,0.0005062,31]
[406590890,1771960055276,-402.0,0.00050665,31]
[406590891,1771960055297,-500.0,0.000509,60]
[406590892,1771960055318,-3768.28,0.00050908,120]
[406590893,1771960055338,-402.0,0.0005098,31]
[406590894,1771960055373,-172.0,0.00051,120]
[406590895,1771960055398,-715.0,0.0005106,31]
[406590896,1771960055419,-1000.0,0.000512,60]
[406590897,1771960055451,-168.0,0.00051303,2]
[406590898,1771960055491,-402.0,0.00051385,31]
[406590899,1771960055513,-327.86349123,0.00051398,4]
[406590900,1771960055544,-3897.44714252,0.00051408,120]
[406590909,1771960152222,-5000.0,0.00024953,2]
[406590910,1771960152356,-744.3517164,0.00028731,2]
[406590911,1771960152383,-4768.85,0.00041095,120]
[406590912,1771960152403,-514.53832024,0.00042307,28]
[406590913,1771960152422,-1120.8,0.00042407,120]
[406590914,1771960152441,-1176.83,0.00042907,120]
[406590915,1771960152461,-1235.68,0.00043407,120]
[406590916,1771960152481,-1297.47,0.00043907,120]
[406590917,1771960152502,-1362.34,0.00044407,120]
[406590918,1771960152523,-1430.46,0.00044907,120]
[406590919,1771960152543,-1501.98,0.00045407,120]
[406590920,1771960152567,-1577.08,0.00045907,120]
[406590921,1771960152586,-1655.94,0.00046407,120]
[406590922,1771960152608,-1738.73,0.00046907,120]
[406590923,1771960152636,-1825.67,0.00047407,120]
[406590924,1771960152654,-1916.96,0.00047907,120]
[406590925,1771960152673,-2012.8,0.00048407,120]
[406590926,1771960152693,-151.0,0.00048408,120]
[406590927,1771960152712,-151.0,0.00048408,120]
[406590928,1771960152731,-151.0,0.00048408,120]
[406590929,1771960152750,-197.37,0.00048807,120]
[406590930,1771960152768,-2113.44,0.00048907,120]
[406590931,1771960152787,-2219.12,0.00049407,120]
[406590932,1771960152806,-2330.07,0.00049907,120]
[406590934,1771960161680,5000.0,0.00024953,120]
[406590935,1771960161934,163.87041546,0.00048307,2]
[406590936,1771960166902,163.87041546,0.00050104,120]
[406590937,1771960173361,844.13,0.00042408,120]
[406590938,1771960173385,1077.34,0.00044908,120]
[406590939,1771960173416,886.34,0.00042908,120]
[406590940,1771960173440,989.53707244,0.00045408,120]
[406590970,1771960232169,-2075.5140963,0.00024953,120]
[406591067,1771960238408,-2924.4859037,0.00024953,120]
[406591068,1771960238418,-204.22363,0.00027,120]
[406591069,1771960238427,-150.0,0.000411,2]
[406591070,1771960238437,-1876.77527499,0.00041934,30]
[406591071,1771960239841,-1383.47983323,0.00041934,30]
[406591072,1771960239851,-15433.26148328,0.00041934,2]
[406591073,1771960239860,-6101.44095133,0.00041934,2]
[406591074,1771960239870,-262.8709,0.00042127,2]
[406591075,1771960239879,-804.51,0.00042408,120]
[406591076,1771960239888,-844.73,0.00042908,120]
[406591077,1771960239897,-886.97,0.00043408,120]
[406591078,1771960239907,-931.32,0.00043908,120]
[406591079,1771960239916,-977.88,0.00044408,120]
[406591080,1771960239925,-1026.78,0.00044908,120]
[406591081,1771960239935,-1078.11,0.00045408,120]
[406591082,1771960239944,-1132.02,0.00045908,120]
[406591083,1771960239954,-1188.61,0.00046408,120]
[406591084,1771960239963,-1248.05,0.00046908,120]
[406591085,1771960239972,-1310.46,0.00047408,120]
[406591086,1771960239982,-1375.98,0.00047908,120]
[406591087,1771960239991,-1444.78,0.00048408,120]
[406591088,1771960240006,-1517.02,0.00048908,120]
[406591089,1771960240015,-1592.87,0.00049408,120]
[406591090,1771960240025,-1672.51,0.00049908,120]
[406591091,1771960240034,-1756.14,0.00050408,120]
[406591092,1771960240044,-1843.95,0.00050908,120]
[406591093,1771960240055,-1936.15,0.00051408,120]
[406591094,1771960240065,-1000.0,0.000515,60]
[406591095,1771960240074,-200.0,0.00051879,120]
[406591096,1771960240083,-406.0,0.0005189,31]
[406591097,1771960240092,-2032.95,0.00051908,120]
[406591098,1771960240101,-151.0,0.00051969,2]
[406591100,1771960240111,-151.0,0.00051969,2]
[406591101,1771960240119,-151.0,0.00051969,2]
[406591102,1771960240129,-151.0,0.00051969,2]
[406591103,1771960240138,-151.0,0.00051969,2]
[406591104,1771960240147,-151.0,0.00051969,2]
[406591105,1771960240156,-151.0,0.00051969,2]
[406591107,1771960240165,-151.0,0.00051969,2]
[406591110,1771960240175,-166.98018273,0.00051969,2]
[406591111,1771960240183,-1318.97153791,0.00051994,30]
[406591113,1771960240193,-12156.56109332,0.00052,2]
[406591121,1771960242629,-530.49760276,0.0005199,10]
[406591123,1771960242683,-416.82871599,0.0005199,10]
[406591154,1771960243592,-153.53368125,0.0005199,10]
[406591155,1771960243602,-4866.97603956,0.00052,2]
[406591176,1771960247186,-744.3517164,0.00041934,2]
[406591177,1771960247196,-14615.70396915,0.00052,2]
[406591196,1771961062460,10000.0,0.000125,2]
[406591197,1771961141113,-754.30274339,0.00023024,120]
[406591198,1771961238087,-5000.0,0.00024953,2]
[406591199,1771961238108,-473.67327033,0.00041488,2]
[406591200,1771961238128,-150.0,0.00041907,2]
[406591201,1771961238149,-651.9797,0.00041911,2]
[406591202,1771961238170,-150.59887624,0.00041954,7]
[406591203,1771961238189,-526.92,0.00042408,120]
[406591204,1771961238209,-553.28,0.00042908,120]
[406591205,1771961238228,-182.3757,0.00042955,2]
[406591206,1771961238247,-651.9797,0.00042958,2]
[406591207,1771961238267,-1894.328891,0.00043193,2]
[406591208,1771961238286,-580.94,0.00043408,120]
[406591209,1771961238305,-6786.7752795,0.00043839,2]
[406591210,1771961238324,-609.99,0.00043908,120]
[406591211,1771961238344,-651.9797,0.00044006,2]
[406591212,1771961238363,-292.3655291,0.000441,2]
[406591213,1771961238382,-241.0690911,0.00044129,2]
[406591214,1771961238402,-640.49,0.00044408,120]
[406591215,1771961238422,-672.51,0.00044908,120]
[406591216,1771961238444,-233.08436022,0.00045407,120]
[406591217,1771961238463,-706.14,0.00045408,120]
[406591218,1771961238482,-741.45,0.00045908,120]
[406591219,1771961238503,-169.338,0.00045908,75]
[406591220,1771961238523,-778.52,0.00046408,120]
[406591221,1771961238543,-342.22372264,0.00046586,7]
[406591222,1771961238564,-992.222209,0.00046701,2]
[406591223,1771961238586,-817.44,0.00046908,120]
[406591224,1771961238607,-858.32,0.00047408,120]
[406591225,1771961238628,-901.23,0.00047908,120]
[406591226,1771961238648,-946.29,0.00048408,120]
[406591227,1771961238668,-993.61,0.00048908,120]
[406591228,1771961238689,-1043.29,0.00049408,120]
[406591229,1771961238710,-1095.46,0.00049908,120]
[406591230,1771961238730,-744.3517164,0.00050078,2]
[406591231,1771961238750,-450.0,0.000503,60]
[406591232,1771961238769,-90.13392818,0.00050408,120]
[406591233,1771961244085,-1060.09607182,0.00050408,120]
[406591234,1771961244106,-57.69245409,0.000506,60]
[406591236,1771961368076,-1207.605588,0.00024953,2]
[406591271,1771961432427,-1297.01723482,0.00024953,2]
[406591326,1771961438536,-744.3517164,0.0002879,2]
[406591327,1771961438545,-484.0,0.000299,12]
[406591328,1771961438555,-227.73036341,0.0003,7]
[406591329,1771961438566,-1795.69425361,0.0003,7]
[406591330,1771961438577,-2578.57178395,0.0003,7]
[406591448,1771961443734,-3896.11847603,0.00024953,2]
[406591449,1771961443746,-1103.88152397,0.00024953,2]
[406591450,1771961443755,-754.85071756,0.0003,7]
[406591451,1771961443767,-435.0,0.0003,7]
[406591452,1771961443778,-2561.39004323,0.0003,7]
[406591453,1771961443791,-598.289646,0.0003,7]
[406591454,1771961443800,-165.46,0.0003,5]
[406591455,1771961443809,-250.0,0.0003,60]
[406591456,1771961443819,-350.0,0.00031,60]
[406591457,1771961443828,-344.47321139,0.00033261,30]
[406591458,1771961443837,-456.16718584,0.0003526,7]
[406591465,1771961446514,-288.18453056,0.0003526,7]
[406591466,1771961446524,-533.62666663,0.00041906,2]
[406591467,1771961446534,-384.85,0.00042408,120]
[406591468,1771961446543,-4376.64332991,0.000428,120]
[406591469,1771961446554,-3259.41104684,0.000428,120]
[406591470,1771961446564,-5037.59269825,0.000428,120]
[406591471,1771961446574,-404.1,0.00042908,120]
[406591472,1771961446583,-424.3,0.00043408,120]
[406591473,1771961446592,-445.52,0.00043908,120]
[406591474,1771961446601,-467.79,0.00044408,120]
[406591475,1771961446610,-491.18,0.00044908,120]
[406591476,1771961446620,-749.2,0.00045,30]
[406591477,1771961446628,-515.74,0.00045408,120]
[406591478,1771961446638,-541.53,0.00045908,120]
[406591479,1771961446647,-568.61,0.00046408,120]
[406591480,1771961446656,-597.04,0.00046908,120]
[406591481,1771961446665,-626.89,0.00047408,120]
[406591482,1771961446673,-658.23,0.00047908,120]
[406591483,1771961446683,-691.15,0.00048408,120]
[406591484,1771961446692,-725.7,0.00048908,120]
[406591485,1771961446701,-761.99,0.00049408,120]
[406591486,1771961446711,-800.09,0.00049908,120]
[406591487,1771961446720,-840.09,0.00050408,120]
[406591488,1771961446729,-442.30754591,0.000506,60]
[406591489,1771961446739,-1000.0,0.000509,60]
[406591490,1771961446748,-882.1,0.00050908,120]
[406591491,1771961446757,-500.0,0.00051,60]
[406591492,1771961446766,-512.83911223,0.00051,60]
[406591493,1771961446775,-1000.0,0.000512,60]
[406591494,1771961446785,-926.2,0.00051408,120]
[406591495,1771961446794,-1000.0,0.000515,60]
[406591496,1771961446803,-1000.0,0.000518,60]
[406591497,1771961446813,-1302.66518209,0.00051875,60]
[406591498,1771961446822,-972.51,0.00051908,120]
[406591499,1771961446831,-571.46895001,0.00051969,2]
[406591500,1771961446840,-208.72330859,0.00051969,2]
[406591501,1771961446849,-50000.0,0.00051973,120]
[406591502,1771961446858,-717.11,0.0005199,30]
[406591503,1771961446867,-2099.28,0.0005199,10]
[406591504,1771961446876,-4570.15,0.00051999,120]
[406591505,1771961446885,-150.37,0.00052,14]
[406591506,1771961446894,-854.78,0.00052,14]
[406591507,1771961446903,-166.0,0.00052,30]
[406591508,1771961446912,-13194.79384885,0.00052,2]
[406591509,1771961447464,-2416.21215352,0.00052,2]
[406591510,1771961447476,-1992.05983524,0.00052,2]
[406591511,1771961447487,-806.84844911,0.00052,2]
[406591512,1771961447498,-1702.76985646,0.00052,2]
[406591513,1771961447510,-4717.07435341,0.00052,2]
[406591514,1771962331087,-776.02239485,0.00024211,120]
[406591515,1771962427085,-1039.73903438,0.00024953,2]
[406591516,1771962545125,-198.45082933,0.00024703,2]
[406591517,1771962570092,-4786.57159376,0.00024703,2]
[406591518,1771962570114,-3960.26096562,0.00024953,2]
[406591519,1771962570134,-744.3517164,0.00028843,2]
[406591520,1771962570155,-654.5,0.00037,8]
[406591521,1771962570174,-15931.1767,0.000382,2]
[406591522,1771962570194,-270.5939,0.000419,2]
[406591523,1771962570214,-252.07,0.00042408,120]
[406591524,1771962570233,-264.67,0.00042908,120]
[406591525,1771962570251,-270.5939,0.00042948,2]
[406591526,1771962570270,-277.91,0.00043408,120]
[406591527,1771962570292,-169.338,0.00043555,68]
[406591528,1771962570311,-450.22103021,0.00043808,28]
[406591529,1771962570333,-23529.68536216,0.00043908,2]
[406591530,1771962570353,-291.8,0.00043908,120]
[406591531,1771962570372,-270.5939,0.00043995,2]
[406591532,1771962570391,-602.39550495,0.00044102,7]
[406591533,1771962570410,-306.39,0.00044408,120]
[406591534,1771962570428,-321.7,0.00044908,120]
[406591535,1771962570447,-337.8,0.00045408,120]
[406591536,1771962570466,-354.69,0.00045908,120]
[406591537,1771962570486,-275.02365367,0.00046371,7]
[406591538,1771962570506,-372.42,0.00046408,120]
[406591539,1771962572650,4075.96414967,0.00024953,2]
[406591541,1771962604048,181.84,9.5e-05,2]
[406591542,1771962604544,181.84,9.8e-05,2]
[406591543,1771962605074,181.84,0.000101,2]
[406591544,1771962605654,181.84,0.000104,2]
[406591563,1771962637690,-924.03585033,0.00024953,2]
[406591564,1771962637700,-223.07,0.00042408,120]
[406591565,1771962637709,-234.22,0.00042908,120]
[406591566,1771962637718,-245.93,0.00043408,120]
[406591567,1771962637727,-258.23,0.00043908,120]
[406591568,1771962637736,-271.14,0.00044408,120]
[406591569,1771962637746,-284.7,0.00044908,120]
[406591570,1771962637756,-298.93,0.00045408,120]
[406591571,1771962637766,-313.88,0.00045908,120]
[406591572,1771962637775,-329.57,0.00046408,120]
[406591573,1771962637785,-346.05,0.00046908,120]
[406591574,1771962637794,-363.36,0.00047408,120]
[406591576,1771962637803,-381.52,0.00047908,120]
[406591577,1771962637812,-400.6,0.00048408,120]
[406591578,1771962637821,-420.63,0.00048908,120]
[406591579,1771962637831,-441.66,0.00049408,120]
[406591580,1771962637841,-463.74,0.00049908,120]
[406591581,1771962637851,-6737.0881641,0.00050336,2]
[406591582,1771962637860,-2976.6666271,0.00050336,2]
[406591583,1771962637869,-486.93,0.00050408,120]
[406591584,1771962637879,-511.28,0.00050908,120]
[406591585,1771962637888,-536.84,0.00051408,120]
[406591586,1771962637897,-9722.98147429,0.000519,120]
[406591587,1771962637907,-750.85646,0.000519,2]
[406591588,1771962637919,-2186.35586107,0.000519,2]
[406591610,1771962643071,-34856.55650591,0.0003643,2]
[406591619,1771962645810,-49312.12429409,0.0003643,2]
[406591620,1771962645820,-744.3517164,0.00050336,2]
[406591621,1771962645830,-4369.39877643,0.000519,2]
[406591622,1771962645841,-563.69,0.00051908,120]
[406591623,1771962645851,-1027.61546591,0.00051969,2]
[406591624,1771962645860,-290.05987468,0.00051969,2]
[406591625,1771962645870,-375.3262535,0.00051969,2]
[406591626,1771962645879,-1749.4,0.0005199,10]
[406591627,1771962645888,-1457.83,0.0005199,10]
[406591628,1771962645897,-4379.73,0.00051998,120]
[406591629,1771962645906,-250.0,0.00051999,30]
[406591630,1771962645915,-160.76155877,0.00051999,30]
[406591631,1771962645925,-250.0,0.00051999,30]
[406591632,1771962645934,-250.0,0.00051999,30]
[406591633,1771962645943,-250.0,0.00051999,30]
[406591634,1771962645953,-197.15304581,0.00051999,30]
[406591635,1771962645962,-151.0,0.00051999,30]
[406591636,1771962645971,-156.587,0.00051999,30]
[406591637,1771962645980,-162.380719,0.00051999,30]
[406591638,1771962645993,-168.3888056,0.00051999,30]
[406591639,1771962646002,-174.61919141,0.00051999,30]
[406591640,1771962646011,-181.08010149,0.00051999,30]
[406591641,1771962646020,-187.78006525,0.00051999,30]
[406591642,1771962646029,-194.72792766,0.00051999,30]
[406591643,1771962646038,-201.93286099,0.00051999,30]
[406591644,1771962646047,-209.40437684,0.00051999,30]
[406591645,1771962646058,-217.15233878,0.00051999,30]
[406591646,1771962646068,-225.18697532,0.00051999,30]
[406591647,1771962646077,-233.51889341,0.00051999,30]
[406591648,1771962646087,-242.15909246,0.00051999,30]
[406591649,1771962646097,-223.04728914,0.00051999,30]
[406591650,1771962646106,-41392.87072541,0.00052,2]
[406591657,1771963543085,-719.68184073,0.00024456,120]
[406591658,1771963638083,-1079.46221099,0.00024953,2]
[406591659,1771963638124,-473.67327033,0.00024953,2]
[406591660,1771963753157,-3446.86451868,0.00024953,2]
[406591661,1771963753178,-171.246,0.0003526,41]
[406591662,1771963753200,-258.98262247,0.00036429,15]
[406591663,1771963753220,-34856.5565,0.0003643,2]
[406591664,1771963753240,-744.3517164,0.00037509,2]
[406591665,1771963753261,-1101.0386,0.00038196,2]
[406591666,1771963753280,-155.10136481,0.00039779,31]
[406591667,1771963753299,-37000.0,0.0003978,20]
[406591668,1771963753320,-600.0,0.00040575,60]
[406591669,1771963753339,-276.1758,0.00041063,2]
[406591670,1771963753357,-242.0587,0.00041477,2]
[406591671,1771963753377,-155.03,0.00042408,120]
[406591672,1771963753397,-152.88,0.00042408,120]
[406591673,1771963753417,-242.0587,0.00042514,2]
[406591674,1771963753437,-162.78,0.00042908,120]
[406591675,1771963753457,-160.52,0.00042908,120]
[406591676,1771963753479,-285.53561177,0.00043017,5]
[406591677,1771963753499,-170.92,0.00043408,120]
[406591678,1771963753524,-168.55,0.00043408,120]
[406591679,1771963753543,-242.0587,0.00043551,2]
[406591680,1771963753564,-4564.5,0.00043906,120]
[406591681,1771963753583,-28486.09311136,0.00043907,120]
[406591682,1771963753601,-179.46,0.00043908,120]
[406591683,1771963753620,-176.98,0.00043908,120]
[406591684,1771963753639,-747.92,0.00044,14]
[406591685,1771963753661,-1838.66743,0.00044188,2]
[406591686,1771963753680,-220.82242398,0.00044348,5]
[406591687,1771963753700,-188.44,0.00044408,120]
[406591688,1771963753718,-185.82,0.00044408,120]
[406591689,1771963753743,-382.19654076,0.00044556,7]
[406591690,1771963753765,-720.0,0.00044632,60]
[406591691,1771963753785,-197.86,0.00044908,120]
[406591692,1771963753808,-195.12,0.00044908,120]
[406591693,1771963753829,-207.75,0.00045408,120]
[406591694,1771963753849,-204.87,0.00045408,120]
[406591695,1771963753868,-218.14,0.00045908,120]
[406591696,1771963753888,-215.12,0.00045908,120]
[406591697,1771963753907,-229.05,0.00046408,120]
[406591698,1771963753927,-225.87,0.00046408,120]
[406591699,1771963753946,-240.5,0.00046908,120]
[406591700,1771963753965,-237.17,0.00046908,120]
[406591701,1771963753983,-736.151,0.00047012,2]
[406591702,1771963754003,-252.52,0.00047408,120]
[406591703,1771963754021,-249.02,0.00047408,120]
[406591704,1771963754040,-99.40292033,0.00047908,120]
[406591705,1771963772077,-5000.0,0.00024953,2]
[406591706,1771963772096,-151.0,0.00043907,120]
[406591707,1771963773154,151.0,0.00043907,120]
[406591708,1771963774364,252.3,0.00042407,120]
[406591709,1771963774392,306.68,0.00044407,120]
[406591710,1771963774443,264.92,0.00042907,120]
[406591711,1771963774485,278.17,0.00043407,120]
[406591712,1771963774543,292.07,0.00043907,120]
[406591713,1771963774593,322.01,0.00044907,120]
[406591714,1771963790256,2265.83874529,0.00024953,120]
[406591819,1771963837881,-2734.16125471,0.00024953,120]
[406591820,1771963837890,-234.4,0.00042407,120]